[Event "Titled Tuesday Blitz March 07 Late 2023"]
[White "Szente Varga, Fruzsina"]
[Black "Timmermans, Mark"]
[WhiteFideId "712264"]
[BlackFideId "1026399"]
[WhiteElo "1994"]
[BlackElo "2460"]
[Result "0-1"]
[Round "02"]
[TimeControl "180+2"]
[Date "2023.03.07"]
[WhiteClock "0:00:06"]
[BlackClock "0:01:36"]

1. e4 {[%clk 0:03:00]}  e5 {[%clk 0:02:58]} 2. Nf3 {[%clk 0:03:00]}  Nc6 {[%clk 0:02:58]} 3. Bb5 {[%clk 0:03:00]}  f5 {[%clk 0:02:57]} 4. exf5 {[%clk 0:02:54]}  e4 {[%clk 0:02:57]} 5. Qe2 {[%clk 0:02:53]}  Qe7 {[%clk 0:02:54]} 6. Bxc6 {[%clk 0:02:48]}  dxc6 {[%clk 0:02:53]} 7. Nd4 {[%clk 0:02:47]}  Qe5 {[%clk 0:02:54]} 8. Nb3 {[%clk 0:02:34]}  Bxf5 {[%clk 0:02:51]} 9. d3 {[%clk 0:02:27]}  Bd6 {[%clk 0:02:50]} 10. dxe4 {[%clk 0:02:23]}  Qxe4 {[%clk 0:02:51]} 11. Nd4 {[%clk 0:01:51]}  Qxe2+ {[%clk 0:02:50]} 12. Kxe2 {[%clk 0:01:52]}  Bg6 {[%clk 0:02:50]} 13. Bg5 {[%clk 0:01:40]}  Nf6 {[%clk 0:02:46]} 14. Bxf6 {[%clk 0:01:34]}  gxf6 {[%clk 0:02:47]} 15. c3 {[%clk 0:01:32]}  Kf7 {[%clk 0:02:45]} 16. Nd2 {[%clk 0:01:25]}  h5 {[%clk 0:02:45]} 17. h4 {[%clk 0:01:08]}  a6 {[%clk 0:02:43]} 18. Rhe1 {[%clk 0:01:07]}  c5 {[%clk 0:02:42]} 19. N4b3 {[%clk 0:01:05]}  Rhe8+ {[%clk 0:02:42]} 20. Kf3 {[%clk 0:01:04]}  Bf5 {[%clk 0:02:40]} 21. g3 {[%clk 0:00:59]}  Be6 {[%clk 0:02:37]} 22. Kg2 {[%clk 0:00:48]}  a5 {[%clk 0:02:37]} 23. c4 {[%clk 0:00:23]}  a4 {[%clk 0:02:34]} 24. Nc1 {[%clk 0:00:23]}  Be5 {[%clk 0:02:32]} 25. Nd3 {[%clk 0:00:22]}  Bd4 {[%clk 0:02:33]} 26. Rab1 {[%clk 0:00:19]}  Bf5 {[%clk 0:02:31]} 27. Nf4 {[%clk 0:00:16]}  Bxb1 {[%clk 0:02:31]} 28. Rxb1 {[%clk 0:00:17]}  a3 {[%clk 0:02:27]} 29. bxa3 {[%clk 0:00:16]}  Rxa3 {[%clk 0:02:28]} 30. Rxb7 {[%clk 0:00:16]}  Rxa2 {[%clk 0:02:26]} 31. Rxc7+ {[%clk 0:00:16]}  Re7 {[%clk 0:02:26]} 32. Rxe7+ {[%clk 0:00:10]}  Kxe7 {[%clk 0:02:27]} 33. Ne4 {[%clk 0:00:11]}  f5 {[%clk 0:02:26]} 34. Ng5 {[%clk 0:00:08]}  Rxf2+ {[%clk 0:02:25]} 35. Kh3 {[%clk 0:00:09]}  Rc2 {[%clk 0:02:09]} 36. Nd5+ {[%clk 0:00:09]}  Kd7 {[%clk 0:02:04]} 37. Nf3 {[%clk 0:00:07]}  Kd8 {[%clk 0:01:58]} 38. Nb6 {[%clk 0:00:05]}  Rc3 {[%clk 0:01:54]} 39. Ng5 {[%clk 0:00:04]}  Bf2 {[%clk 0:01:51]} 40. Ne6+ {[%clk 0:00:05]}  Ke8 {[%clk 0:01:49]} 41. Ng7+ {[%clk 0:00:05]}  Kf7 {[%clk 0:01:47]} 42. Nxh5 {[%clk 0:00:05]}  Bxg3 {[%clk 0:01:42]} 43. Nxg3 {[%clk 0:00:05]}  f4 {[%clk 0:01:42]} 44. Nd5 {[%clk 0:00:05]}  Rxg3+ {[%clk 0:01:43]} 45. Kh2 {[%clk 0:00:05]}  Rg8 {[%clk 0:01:36]} 46. Nxf4 {[%clk 0:00:06]}  Rg4 {[%clk 0:01:36]} 47. Nd5 {[%clk 0:00:06]}  Rxh4+ {[%clk 0:01:36]} 48. Kg3 {[%clk 0:00:06]}  Rxc4 {[%clk 0:01:36]} 49. Kf3 {[%clk 0:00:07]}  Rd4 {[%clk 0:01:36]} 50. Nc3 {[%clk 0:00:06]}  Rd3+ {[%clk 0:01:36]} 0-1


[Site "https://www.chess.com"]

[Event "Titled Tuesday Blitz March 07 Late 2023"]
[White "Almeida Quintana, Omar"]
[Black "Romero Ruscalleda, Josep"]
[WhiteFideId "3503313"]
[BlackFideId "2231859"]
[WhiteElo "2530"]
[BlackElo "2183"]
[Result "1-0"]
[Round "02"]
[TimeControl "180+2"]
[Date "2023.03.07"]
[WhiteClock "0:00:37"]
[BlackClock "0:00:09"]

1. Nf3 {[%clk 0:03:00]}  g6 {[%clk 0:03:00]} 2. c4 {[%clk 0:03:00]}  Bg7 {[%clk 0:03:01]} 3. Nc3 {[%clk 0:03:00]}  d6 {[%clk 0:03:01]} 4. e4 {[%clk 0:02:59]}  c5 {[%clk 0:03:01]} 5. h3 {[%clk 0:02:56]}  Nc6 {[%clk 0:03:00]} 6. d3 {[%clk 0:02:55]}  e5 {[%clk 0:02:59]} 7. Be2 {[%clk 0:02:53]}  Nge7 {[%clk 0:03:00]} 8. h4 {[%clk 0:02:50]}  f5 {[%clk 0:02:58]} 9. h5 {[%clk 0:02:50]}  Nd4 {[%clk 0:02:50]} 10. Bg5 {[%clk 0:02:42]}  h6 {[%clk 0:02:29]} 11. Bxe7 {[%clk 0:02:36]}  Qxe7 {[%clk 0:02:29]} 12. Nd5 {[%clk 0:02:32]}  Qd8 {[%clk 0:02:09]} 13. Nxd4 {[%clk 0:02:14]}  exd4 {[%clk 0:02:05]} 14. hxg6 {[%clk 0:02:13]}  O-O {[%clk 0:01:59]} 15. Qd2 {[%clk 0:02:12]}  fxe4 {[%clk 0:01:54]} 16. dxe4 {[%clk 0:02:10]}  Be6 {[%clk 0:01:42]} 17. Nf4 {[%clk 0:01:59]}  Qf6 {[%clk 0:01:32]} 18. g3 {[%clk 0:01:59]}  Rae8 {[%clk 0:01:29]} 19. O-O-O {[%clk 0:01:53]}  d3 {[%clk 0:01:21]} 20. Bxd3 {[%clk 0:01:49]}  Bg4 {[%clk 0:01:20]} 21. Rde1 {[%clk 0:01:47]}  Bf3 {[%clk 0:01:18]} 22. Rh2 {[%clk 0:01:37]}  b5 {[%clk 0:01:16]} 23. Re3 {[%clk 0:01:33]}  Bg4 {[%clk 0:01:06]} 24. f3 {[%clk 0:01:25]}  Bd7 {[%clk 0:01:00]} 25. cxb5 {[%clk 0:01:23]}  Be6 {[%clk 0:00:44]} 26. Nh5 {[%clk 0:01:07]}  Qxg6 {[%clk 0:00:38]} 27. e5 {[%clk 0:01:01]}  Bf5 {[%clk 0:00:28]} 28. Bc4+ {[%clk 0:00:53]}  Kh7 {[%clk 0:00:27]} 29. Nxg7 {[%clk 0:00:52]}  Kxg7 {[%clk 0:00:25]} 30. g4 {[%clk 0:00:50]}  Be6 {[%clk 0:00:18]} 31. Bd3 {[%clk 0:00:45]}  Qg5 {[%clk 0:00:18]} 32. Rh5 {[%clk 0:00:45]}  Qf4 {[%clk 0:00:17]} 33. exd6 {[%clk 0:00:45]}  Bf7 {[%clk 0:00:14]} 34. Rxe8 {[%clk 0:00:42]}  Qxd2+ {[%clk 0:00:12]} 35. Kxd2 {[%clk 0:00:43]}  Rxe8 {[%clk 0:00:12]} 36. Rxc5 {[%clk 0:00:43]}  Bxa2 {[%clk 0:00:12]} 37. d7 {[%clk 0:00:42]}  Rd8 {[%clk 0:00:12]} 38. Bf5 {[%clk 0:00:42]}  Kf6 {[%clk 0:00:10]} 39. Rc8 {[%clk 0:00:40]}  Ke7 {[%clk 0:00:10]} 40. Rxd8 {[%clk 0:00:40]}  Kxd8 {[%clk 0:00:10]} 41. Kc3 {[%clk 0:00:41]}  Kc7 {[%clk 0:00:10]} 42. Kd4 {[%clk 0:00:40]}  Bf7 {[%clk 0:00:10]} 43. Ke5 {[%clk 0:00:40]}  Bc4 {[%clk 0:00:09]} 44. Kf6 {[%clk 0:00:38]}  Bxb5 {[%clk 0:00:09]} 45. Ke7 {[%clk 0:00:38]}  Be2 {[%clk 0:00:09]} 46. d8=Q+ {[%clk 0:00:37]} 1-0


[Site "https://www.chess.com"]

[Event "Titled Tuesday Blitz March 07 Late 2023"]
[White "Sochacki, Christophe"]
[Black "Gerbelli Neto, Eduardo"]
[WhiteFideId "662569"]
[BlackFideId "2103281"]
[WhiteElo "2474"]
[BlackElo "2178"]
[Result "0-1"]
[Round "02"]
[TimeControl "180+2"]
[Date "2023.03.07"]
[WhiteClock "0:00:01"]
[BlackClock "0:00:07"]

1. b3 {[%clk 0:03:00]}  d5 {[%clk 0:02:55]} 2. Bb2 {[%clk 0:02:59]}  Nf6 {[%clk 0:02:56]} 3. Nf3 {[%clk 0:02:59]}  Bf5 {[%clk 0:02:54]} 4. g3 {[%clk 0:02:54]}  e6 {[%clk 0:02:54]} 5. Bg2 {[%clk 0:02:55]}  Be7 {[%clk 0:02:51]} 6. d3 {[%clk 0:02:55]}  O-O {[%clk 0:02:49]} 7. Nh4 {[%clk 0:02:55]}  Bg6 {[%clk 0:02:49]} 8. Nxg6 {[%clk 0:02:54]}  hxg6 {[%clk 0:02:50]} 9. Nd2 {[%clk 0:02:52]}  c5 {[%clk 0:02:50]} 10. O-O {[%clk 0:02:51]}  Nc6 {[%clk 0:02:49]} 11. h4 {[%clk 0:02:45]}  Qc7 {[%clk 0:02:28]} 12. e4 {[%clk 0:02:40]}  Rad8 {[%clk 0:02:21]} 13. Qe2 {[%clk 0:02:23]}  Nd4 {[%clk 0:02:16]} 14. Qd1 {[%clk 0:02:12]}  b5 {[%clk 0:02:08]} 15. a3 {[%clk 0:02:00]}  dxe4 {[%clk 0:02:03]} 16. Nxe4 {[%clk 0:01:59]}  Nxe4 {[%clk 0:02:03]} 17. Bxe4 {[%clk 0:02:00]}  Bf6 {[%clk 0:02:04]} 18. Kh1 {[%clk 0:01:42]}  c4 {[%clk 0:01:43]} 19. a4 {[%clk 0:01:09]}  cxb3 {[%clk 0:01:12]} 20. cxb3 {[%clk 0:01:08]}  b4 {[%clk 0:01:05]} 21. Rc1 {[%clk 0:01:07]}  Qe7 {[%clk 0:00:40]} 22. Rc4 {[%clk 0:01:06]}  a5 {[%clk 0:00:34]} 23. Kg2 {[%clk 0:00:51]}  Nf5 {[%clk 0:00:31]} 24. Bxf6 {[%clk 0:00:49]}  Qxf6 {[%clk 0:00:32]} 25. Rc5 {[%clk 0:00:46]}  Nd6 {[%clk 0:00:27]} 26. Qf3 {[%clk 0:00:42]}  Nxe4 {[%clk 0:00:25]} 27. Qxe4 {[%clk 0:00:38]}  Rd4 {[%clk 0:00:24]} 28. Qe3 {[%clk 0:00:34]}  Rfd8 {[%clk 0:00:23]} 29. Rd1 {[%clk 0:00:32]}  R4d5 {[%clk 0:00:24]} 30. Rxd5 {[%clk 0:00:25]}  Rxd5 {[%clk 0:00:25]} 31. Rc1 {[%clk 0:00:25]}  Qb2 {[%clk 0:00:23]} 32. Rc8+ {[%clk 0:00:25]}  Kh7 {[%clk 0:00:23]} 33. Ra8 {[%clk 0:00:12]}  Qxb3 {[%clk 0:00:22]} 34. Qf4 {[%clk 0:00:13]}  Rf5 {[%clk 0:00:22]} 35. Qb8 {[%clk 0:00:13]}  g5 {[%clk 0:00:18]} 36. h5 {[%clk 0:00:11]}  Rxf2+ {[%clk 0:00:11]} 37. Kxf2 {[%clk 0:00:12]}  Qb2+ {[%clk 0:00:12]} 38. Kf3 {[%clk 0:00:08]}  g4+ {[%clk 0:00:12]} 39. Kxg4 {[%clk 0:00:07]}  f5+ {[%clk 0:00:08]} 40. Kh3 {[%clk 0:00:06]}  Kh6 {[%clk 0:00:09]} 41. Qh8+ {[%clk 0:00:06]}  Kg5 {[%clk 0:00:09]} 42. Qxg7+ {[%clk 0:00:07]}  Qxg7 {[%clk 0:00:09]} 43. Rxa5 {[%clk 0:00:04]}  Kxh5 {[%clk 0:00:09]} 44. Rb5 {[%clk 0:00:03]}  Qg4+ {[%clk 0:00:10]} 45. Kg2 {[%clk 0:00:03]}  Qe2+ {[%clk 0:00:11]} 46. Kh3 {[%clk 0:00:04]}  Qxd3 {[%clk 0:00:10]} 47. Rxb4 {[%clk 0:00:04]}  Qf1+ {[%clk 0:00:10]} 48. Kh2 {[%clk 0:00:05]}  Qf2+ {[%clk 0:00:09]} 49. Kh3 {[%clk 0:00:06]}  Qf3 {[%clk 0:00:07]} 50. Kh2 {[%clk 0:00:05]}  Qe2+ {[%clk 0:00:06]} 51. Kh3 {[%clk 0:00:05]}  Qd2 {[%clk 0:00:06]} 52. Rf4 {[%clk 0:00:03]}  Kg5 {[%clk 0:00:06]} 53. Rh4 {[%clk 0:00:01]}  Qd5 {[%clk 0:00:05]} 54. Kh2 {[%clk 0:00:01]}  e5 {[%clk 0:00:04]} 55. Rh8 {[%clk 0:00:01]}  Qd2+ {[%clk 0:00:04]} 56. Kh3 {[%clk 0:00:02]}  f4 {[%clk 0:00:05]} 57. Rg8+ {[%clk 0:00:02]}  Kf5 {[%clk 0:00:05]} 58. gxf4 {[%clk 0:00:01]}  exf4 {[%clk 0:00:06]} 59. Rf8+ {[%clk 0:00:01]}  Ke4 {[%clk 0:00:06]} 60. a5 {[%clk 0:00:02]}  Kf3 {[%clk 0:00:07]} 61. Rg8 {[%clk 0:00:02]}  Qf2 {[%clk 0:00:06]} 62. a6 {[%clk 0:00:02]}  Qf1+ {[%clk 0:00:07]} 63. Kh4 {[%clk 0:00:02]}  Qxa6 {[%clk 0:00:07]} 64. Rg5 {[%clk 0:00:01]}  Qh6+ {[%clk 0:00:08]} 65. Rh5 {[%clk 0:00:02]}  Qf6+ {[%clk 0:00:07]} 66. Kh3 {[%clk 0:00:02]}  Qg6 {[%clk 0:00:07]} 67. Kh2 {[%clk 0:00:01]}  Qg2# {[%clk 0:00:07]} 0-1


[Site "https://www.chess.com"]

[Event "Titled Tuesday Blitz March 07 Late 2023"]
[White "Sai Krishna G V"]
[Black "Avalos Parra, Joao"]
[WhiteFideId "5028280"]
[BlackFideId "3402541"]
[WhiteElo "2359"]
[BlackElo "2173"]
[Result "1-0"]
[Round "02"]
[TimeControl "180+2"]
[Date "2023.03.07"]
[WhiteClock "0:01:56"]
[BlackClock "0:01:16"]

1. e4 {[%clk 0:03:00]}  e5 {[%clk 0:02:55]} 2. Nf3 {[%clk 0:03:00]}  Nc6 {[%clk 0:02:55]} 3. Bb5 {[%clk 0:03:00]}  a6 {[%clk 0:02:56]} 4. Ba4 {[%clk 0:03:01]}  Nf6 {[%clk 0:02:56]} 5. O-O {[%clk 0:03:01]}  b5 {[%clk 0:02:55]} 6. Bb3 {[%clk 0:03:01]}  Bc5 {[%clk 0:02:56]} 7. Nxe5 {[%clk 0:02:59]}  Nxe5 {[%clk 0:02:54]} 8. d4 {[%clk 0:03:00]}  Bxd4 {[%clk 0:02:51]} 9. Qxd4 {[%clk 0:03:01]}  d6 {[%clk 0:02:50]} 10. f4 {[%clk 0:02:47]}  Nc6 {[%clk 0:02:47]} 11. Qe3 {[%clk 0:02:46]}  O-O {[%clk 0:02:46]} 12. Nc3 {[%clk 0:02:44]}  Re8 {[%clk 0:02:46]} 13. a3 {[%clk 0:02:39]}  d5 {[%clk 0:02:30]} 14. Nxd5 {[%clk 0:02:24]}  Nxd5 {[%clk 0:02:30]} 15. Bxd5 {[%clk 0:02:23]}  Qxd5 {[%clk 0:02:20]} 16. exd5 {[%clk 0:02:24]}  Rxe3 {[%clk 0:02:18]} 17. Bxe3 {[%clk 0:02:25]}  Ne7 {[%clk 0:02:18]} 18. Rad1 {[%clk 0:02:23]}  Bb7 {[%clk 0:02:14]} 19. d6 {[%clk 0:02:23]}  cxd6 {[%clk 0:02:15]} 20. Rxd6 {[%clk 0:02:23]}  Nf5 {[%clk 0:02:15]} 21. Rd3 {[%clk 0:02:16]}  Re8 {[%clk 0:02:11]} 22. Re1 {[%clk 0:02:15]}  h5 {[%clk 0:02:06]} 23. Bf2 {[%clk 0:02:13]}  Rc8 {[%clk 0:02:02]} 24. Rd7 {[%clk 0:02:12]}  Bc6 {[%clk 0:01:55]} 25. Ra7 {[%clk 0:02:12]}  h4 {[%clk 0:01:47]} 26. Re5 {[%clk 0:02:05]}  g6 {[%clk 0:01:44]} 27. Rc5 {[%clk 0:02:04]}  Kg7 {[%clk 0:01:39]} 28. Rxa6 {[%clk 0:02:04]}  Bb7 {[%clk 0:01:39]} 29. Rxc8 {[%clk 0:02:03]}  Bxc8 {[%clk 0:01:40]} 30. Rb6 {[%clk 0:02:03]}  Bd7 {[%clk 0:01:39]} 31. Kf1 {[%clk 0:02:02]}  Be8 {[%clk 0:01:31]} 32. g4 {[%clk 0:02:02]}  hxg3 {[%clk 0:01:30]} 33. hxg3 {[%clk 0:02:03]}  Bd7 {[%clk 0:01:30]} 34. g4 {[%clk 0:02:02]}  Nh6 {[%clk 0:01:29]} 35. Bd4+ {[%clk 0:01:57]}  Kh7 {[%clk 0:01:28]} 36. Rb8 {[%clk 0:01:57]}  Ng8 {[%clk 0:01:27]} 37. g5 {[%clk 0:01:56]}  Bf5 {[%clk 0:01:23]} 38. Kf2 {[%clk 0:01:55]}  Bxc2 {[%clk 0:01:23]} 39. Bf6 {[%clk 0:01:54]}  Nxf6 {[%clk 0:01:16]} 40. gxf6 {[%clk 0:01:55]}  g5 {[%clk 0:01:16]} 41. fxg5 {[%clk 0:01:55]}  Kg6 {[%clk 0:01:17]} 42. Rxb5 {[%clk 0:01:55]}  Be4 {[%clk 0:01:16]} 43. Re5 {[%clk 0:01:55]}  Bd3 {[%clk 0:01:16]} 44. Ke3 {[%clk 0:01:56]}  Bc4 {[%clk 0:01:16]} 45. Kf4 {[%clk 0:01:56]} 1-0


[Site "https://www.chess.com"]

[Event "Titled Tuesday Blitz March 07 Late 2023"]
[White "Bach, Matthias"]
[Black "Fus, Jakub"]
[WhiteFideId "4603168"]
[BlackFideId "1193023"]
[WhiteElo "2165"]
[BlackElo "2335"]
[Result "0-1"]
[Round "02"]
[TimeControl "180+2"]
[Date "2023.03.07"]
[WhiteClock "0:00:02"]
[BlackClock "0:00:24"]

1. d4 {[%clk 0:02:52]}  e6 {[%clk 0:02:58]} 2. c4 {[%clk 0:02:52]}  Nf6 {[%clk 0:02:58]} 3. Nc3 {[%clk 0:02:52]}  d5 {[%clk 0:02:58]} 4. Nf3 {[%clk 0:02:50]}  dxc4 {[%clk 0:02:54]} 5. e3 {[%clk 0:02:35]}  a6 {[%clk 0:02:54]} 6. Bxc4 {[%clk 0:02:35]}  b5 {[%clk 0:02:54]} 7. Bb3 {[%clk 0:02:34]}  Bb7 {[%clk 0:02:54]} 8. O-O {[%clk 0:02:33]}  c5 {[%clk 0:02:53]} 9. dxc5 {[%clk 0:02:32]}  Bxc5 {[%clk 0:02:52]} 10. Qxd8+ {[%clk 0:02:31]}  Kxd8 {[%clk 0:02:53]} 11. Ne5 {[%clk 0:02:31]}  Ke7 {[%clk 0:02:52]} 12. a4 {[%clk 0:02:01]}  b4 {[%clk 0:02:51]} 13. Ne2 {[%clk 0:02:00]}  Nc6 {[%clk 0:02:48]} 14. Nd3 {[%clk 0:01:46]}  Bb6 {[%clk 0:02:27]} 15. Bc4 {[%clk 0:01:41]}  Ne4 {[%clk 0:02:11]} 16. b3 {[%clk 0:01:32]}  Rac8 {[%clk 0:01:51]} 17. Bb2 {[%clk 0:01:04]}  f6 {[%clk 0:01:25]} 18. Rfd1 {[%clk 0:00:56]}  Nd6 {[%clk 0:01:19]} 19. Nd4 {[%clk 0:00:43]}  Nxd4 {[%clk 0:01:14]} 20. Bxd4 {[%clk 0:00:35]}  Bxd4 {[%clk 0:01:14]} 21. exd4 {[%clk 0:00:35]}  Nxc4 {[%clk 0:01:08]} 22. bxc4 {[%clk 0:00:36]}  Rxc4 {[%clk 0:01:09]} 23. Nc5 {[%clk 0:00:36]}  Bc8 {[%clk 0:01:00]} 24. a5 {[%clk 0:00:32]}  Rd8 {[%clk 0:00:59]} 25. Nb3 {[%clk 0:00:29]}  Rc3 {[%clk 0:00:55]} 26. Rab1 {[%clk 0:00:20]}  Rd5 {[%clk 0:00:45]} 27. Nc5 {[%clk 0:00:17]}  Rc4 {[%clk 0:00:44]} 28. Nb3 {[%clk 0:00:16]}  Rc3 {[%clk 0:00:38]} 29. Nc5 {[%clk 0:00:15]}  e5 {[%clk 0:00:35]} 30. Ne4 {[%clk 0:00:13]}  Rc4 {[%clk 0:00:24]} 31. Ng3 {[%clk 0:00:02]} 0-1


[Site "https://www.chess.com"]

[Event "Titled Tuesday Blitz March 07 Late 2023"]
[White "Crispin Ferreras, Darvi Abraham"]
[Black "Grinev, Valeriy"]
[WhiteFideId "6402771"]
[BlackFideId "14117517"]
[WhiteElo "2106"]
[BlackElo "2365"]
[Result "0-1"]
[Round "02"]
[TimeControl "180+2"]
[Date "2023.03.07"]
[WhiteClock "0:01:56"]
[BlackClock "0:02:30"]

1. e4 {[%clk 0:03:00]}  c5 {[%clk 0:02:59]} 2. Nf3 {[%clk 0:03:00]}  d6 {[%clk 0:02:59]} 3. c3 {[%clk 0:03:00]}  Nf6 {[%clk 0:02:58]} 4. Be2 {[%clk 0:02:58]}  Nc6 {[%clk 0:02:58]} 5. d4 {[%clk 0:02:57]}  cxd4 {[%clk 0:02:54]} 6. cxd4 {[%clk 0:02:57]}  g6 {[%clk 0:02:53]} 7. Nc3 {[%clk 0:02:56]}  Bg7 {[%clk 0:02:53]} 8. O-O {[%clk 0:02:56]}  O-O {[%clk 0:02:54]} 9. h3 {[%clk 0:02:52]}  d5 {[%clk 0:02:50]} 10. e5 {[%clk 0:02:50]}  Ne4 {[%clk 0:02:50]} 11. Qb3 {[%clk 0:02:49]}  Nxc3 {[%clk 0:02:49]} 12. bxc3 {[%clk 0:02:48]}  Na5 {[%clk 0:02:49]} 13. Qa4 {[%clk 0:02:48]}  Bd7 {[%clk 0:02:49]} 14. Qb4 {[%clk 0:02:46]}  Rc8 {[%clk 0:02:48]} 15. Ba3 {[%clk 0:02:46]}  Re8 {[%clk 0:02:47]} 16. Rab1 {[%clk 0:02:45]}  b6 {[%clk 0:02:47]} 17. Nd2 {[%clk 0:02:40]}  Bf5 {[%clk 0:02:45]} 18. Rbc1 {[%clk 0:02:36]}  f6 {[%clk 0:02:40]} 19. Bb5 {[%clk 0:02:24]}  Bd7 {[%clk 0:02:40]} 20. e6 {[%clk 0:02:21]}  Bxb5 {[%clk 0:02:32]} 21. Qxb5 {[%clk 0:02:21]}  Nc4 {[%clk 0:02:32]} 22. Nxc4 {[%clk 0:02:21]}  Rxc4 {[%clk 0:02:33]} 23. Qd7 {[%clk 0:02:09]}  Qxd7 {[%clk 0:02:31]} 24. exd7 {[%clk 0:02:09]}  Rd8 {[%clk 0:02:32]} 25. Bxe7 {[%clk 0:02:09]}  Rxd7 {[%clk 0:02:33]} 26. Ba3 {[%clk 0:02:06]}  Rdc7 {[%clk 0:02:32]} 27. Bb2 {[%clk 0:02:06]}  Kf7 {[%clk 0:02:30]} 28. f4 {[%clk 0:02:05]}  Ra4 {[%clk 0:02:30]} 29. a3 {[%clk 0:02:05]}  Bf8 {[%clk 0:02:30]} 30. Kf2 {[%clk 0:02:01]}  b5 {[%clk 0:02:30]} 31. Ke2 {[%clk 0:02:00]}  Bxa3 {[%clk 0:02:29]} 32. Bxa3 {[%clk 0:01:57]}  Rxa3 {[%clk 0:02:30]} 33. Kd2 {[%clk 0:01:56]}  Ra2+ {[%clk 0:02:29]} 34. Rc2 {[%clk 0:01:56]}  Rxc2+ {[%clk 0:02:29]} 35. Kxc2 {[%clk 0:01:56]}  b4 {[%clk 0:02:30]} 0-1


[Site "https://www.chess.com"]

[Event "Titled Tuesday Blitz March 07 Late 2023"]
[White "Zarubitski, Viachaslau"]
[Black "De Souza, Cristiano Gomes"]
[WhiteFideId "13509373"]
[BlackFideId "2151758"]
[WhiteElo "2284"]
[BlackElo "2068"]
[Result "1-0"]
[Round "02"]
[TimeControl "180+2"]
[Date "2023.03.07"]
[WhiteClock "0:01:51"]
[BlackClock "0:01:50"]

1. Nf3 {[%clk 0:02:58]}  Nf6 {[%clk 0:02:56]} 2. b3 {[%clk 0:02:58]}  g6 {[%clk 0:02:50]} 3. Bb2 {[%clk 0:02:58]}  Bg7 {[%clk 0:02:50]} 4. e3 {[%clk 0:02:59]}  O-O {[%clk 0:02:49]} 5. c4 {[%clk 0:02:59]}  d5 {[%clk 0:02:46]} 6. cxd5 {[%clk 0:02:59]}  Nxd5 {[%clk 0:02:45]} 7. Qc1 {[%clk 0:02:56]}  Nc6 {[%clk 0:02:44]} 8. Be2 {[%clk 0:02:51]}  h6 {[%clk 0:02:41]} 9. O-O {[%clk 0:02:50]}  e5 {[%clk 0:02:35]} 10. Nc3 {[%clk 0:02:46]}  Be6 {[%clk 0:02:34]} 11. Ne4 {[%clk 0:02:43]}  Rb8 {[%clk 0:02:26]} 12. Nc5 {[%clk 0:02:32]}  Bg4 {[%clk 0:02:23]} 13. a3 {[%clk 0:02:25]}  Qd6 {[%clk 0:02:17]} 14. b4 {[%clk 0:02:22]}  b6 {[%clk 0:02:15]} 15. Ne4 {[%clk 0:02:03]}  Qd7 {[%clk 0:02:07]} 16. Bb5 {[%clk 0:01:59]}  Qf5 {[%clk 0:01:53]} 17. Ng3 {[%clk 0:01:55]}  Qe6 {[%clk 0:01:50]} 18. Qxc6 {[%clk 0:01:51]} 1-0


[Site "https://www.chess.com"]

[Event "Titled Tuesday Blitz March 07 Late 2023"]
[White "Papasimakopoulos, Alexandros"]
[Black "Kukavica, Tony"]
[WhiteFideId "4244125"]
[BlackFideId "2062542"]
[WhiteElo "2359"]
[BlackElo "1993"]
[Result "1-0"]
[Round "02"]
[TimeControl "180+2"]
[Date "2023.03.07"]
[WhiteClock "0:00:12"]
[BlackClock "0:00:02"]

1. d4 {[%clk 0:03:00]}  d5 {[%clk 0:02:57]} 2. c4 {[%clk 0:02:59]}  e6 {[%clk 0:02:58]} 3. Nc3 {[%clk 0:03:00]}  Nf6 {[%clk 0:02:58]} 4. cxd5 {[%clk 0:03:01]}  Nxd5 {[%clk 0:02:58]} 5. e4 {[%clk 0:03:00]}  Nxc3 {[%clk 0:02:58]} 6. bxc3 {[%clk 0:03:00]}  c5 {[%clk 0:02:59]} 7. Rb1 {[%clk 0:03:00]}  cxd4 {[%clk 0:02:59]} 8. cxd4 {[%clk 0:03:01]}  Be7 {[%clk 0:02:56]} 9. Nf3 {[%clk 0:02:57]}  O-O {[%clk 0:02:56]} 10. Bc4 {[%clk 0:02:57]}  Nd7 {[%clk 0:02:50]} 11. O-O {[%clk 0:02:57]}  b6 {[%clk 0:02:48]} 12. Qe2 {[%clk 0:02:56]}  Bb7 {[%clk 0:02:48]} 13. Bf4 {[%clk 0:02:56]}  Rc8 {[%clk 0:02:48]} 14. Ba6 {[%clk 0:02:56]}  Bxa6 {[%clk 0:02:36]} 15. Qxa6 {[%clk 0:02:57]}  Nf6 {[%clk 0:02:36]} 16. Qxa7 {[%clk 0:02:47]}  Nxe4 {[%clk 0:02:29]} 17. Qxb6 {[%clk 0:02:41]}  Nc3 {[%clk 0:02:18]} 18. Qxd8 {[%clk 0:02:39]}  Rfxd8 {[%clk 0:02:19]} 19. Rb2 {[%clk 0:02:35]}  Ra8 {[%clk 0:02:12]} 20. Ra1 {[%clk 0:02:34]}  Bf6 {[%clk 0:01:53]} 21. Be5 {[%clk 0:02:31]}  Bxe5 {[%clk 0:01:41]} 22. dxe5 {[%clk 0:02:30]}  Rd5 {[%clk 0:01:35]} 23. Rc2 {[%clk 0:02:25]}  Rc5 {[%clk 0:01:10]} 24. h3 {[%clk 0:02:13]}  h6 {[%clk 0:01:07]} 25. Kf1 {[%clk 0:02:06]}  Kf8 {[%clk 0:01:02]} 26. Nd4 {[%clk 0:02:05]}  Rd5 {[%clk 0:00:50]} 27. Rxc3 {[%clk 0:01:53]}  Rxd4 {[%clk 0:00:50]} 28. Re3 {[%clk 0:01:46]}  Rda4 {[%clk 0:00:42]} 29. a3 {[%clk 0:01:46]}  R8a5 {[%clk 0:00:42]} 30. g3 {[%clk 0:01:46]}  g5 {[%clk 0:00:41]} 31. Ke2 {[%clk 0:01:42]}  Kg7 {[%clk 0:00:41]} 32. Kd2 {[%clk 0:01:42]}  h5 {[%clk 0:00:41]} 33. Kc2 {[%clk 0:01:42]}  Kg6 {[%clk 0:00:41]} 34. Kb2 {[%clk 0:01:39]}  Kf5 {[%clk 0:00:41]} 35. Rae1 {[%clk 0:01:40]}  Rd4 {[%clk 0:00:38]} 36. Rf3+ {[%clk 0:01:39]}  Kg6 {[%clk 0:00:37]} 37. Re2 {[%clk 0:01:36]}  Rdd5 {[%clk 0:00:33]} 38. Rfe3 {[%clk 0:01:35]}  Rdb5+ {[%clk 0:00:31]} 39. Ka2 {[%clk 0:01:35]}  Rd5 {[%clk 0:00:32]} 40. Re4 {[%clk 0:01:22]}  Rd3 {[%clk 0:00:25]} 41. a4 {[%clk 0:01:22]}  h4 {[%clk 0:00:19]} 42. gxh4 {[%clk 0:01:21]}  Rxh3 {[%clk 0:00:18]} 43. hxg5 {[%clk 0:01:17]}  Kxg5 {[%clk 0:00:19]} 44. Rb4 {[%clk 0:01:01]}  Kf5 {[%clk 0:00:16]} 45. f4 {[%clk 0:00:59]}  Rf3 {[%clk 0:00:15]} 46. Ree4 {[%clk 0:00:59]}  Rd3 {[%clk 0:00:14]} 47. Rec4 {[%clk 0:00:57]}  Rdd5 {[%clk 0:00:14]} 48. Kb3 {[%clk 0:00:57]}  Rd3+ {[%clk 0:00:14]} 49. Rc3 {[%clk 0:00:57]}  Rd1 {[%clk 0:00:14]} 50. Rc2 {[%clk 0:00:55]}  Rdd5 {[%clk 0:00:12]} 51. Rc7 {[%clk 0:00:53]}  f6 {[%clk 0:00:04]} 52. Rf7 {[%clk 0:00:52]}  Rd3+ {[%clk 0:00:05]} 53. Kc2 {[%clk 0:00:52]}  Rad5 {[%clk 0:00:04]} 54. Rxf6+ {[%clk 0:00:52]}  Kg4 {[%clk 0:00:05]} 55. f5+ {[%clk 0:00:50]}  Kg5 {[%clk 0:00:04]} 56. fxe6 {[%clk 0:00:44]}  Rxe5 {[%clk 0:00:04]} 57. Kxd3 {[%clk 0:00:34]}  Kxf6 {[%clk 0:00:04]} 58. Kd4 {[%clk 0:00:24]}  Rh5 {[%clk 0:00:04]} 59. Rb6 {[%clk 0:00:16]}  Ra5 {[%clk 0:00:04]} 60. Kc4 {[%clk 0:00:15]}  Rxa4+ {[%clk 0:00:04]} 61. Kd5 {[%clk 0:00:15]}  Ra5+ {[%clk 0:00:04]} 62. Kd6 {[%clk 0:00:16]}  Re5 {[%clk 0:00:04]} 63. Kd7 {[%clk 0:00:16]}  Rd5+ {[%clk 0:00:04]} 64. Rd6 {[%clk 0:00:17]}  Ra5 {[%clk 0:00:03]} 65. e7+ {[%clk 0:00:14]}  Kf7 {[%clk 0:00:02]} 66. e8=Q+ {[%clk 0:00:11]}  Kg7 {[%clk 0:00:02]} 67. Qe7+ {[%clk 0:00:11]}  Kg8 {[%clk 0:00:02]} 68. Rg6+ {[%clk 0:00:11]}  Kh8 {[%clk 0:00:02]} 69. Qg7# {[%clk 0:00:12]} 1-0


[Site "https://www.chess.com"]